Cogmind - Beta 15 @@@ ROGUE MODE // 2025.05.29 @ 16:40:09 Player: GiggleBox Result: Destroyed by Y-54 Guardian with Gatling Laser Performance ------------- Evolutions (0) 0 Regions Visited (3) 600 Robots Destroyed (22) 110 Value Destroyed (516) 516 Prototype IDs (0) 0 Alien Tech Used (0) 0 Bonus (-35) -35 TOTAL SCORE: 1191 Bonus ------- Friendly Fire -35 Cogmind --------- Core Integrity 0/250 Matter 241/300 Energy 275/275 System Corruption 1% Temperature Warning (316) Movement Walking (270) Ox2 Location -7/Recycling Parts ------- > --- POWER (1) -------- Deuterium Engine > --- PROPULSION (2) --- VSS Leg > --- UTILITY (2) ------ Large Storage Unit > --- WEAPON (2) ------- Beam Rifle Particle Gun > --- INVENTORY (15) --- Light Ion Engine Light Treads Wheel Compact Wheel Heat Sink Compact Battery (200) Machine Analyzer Signal Interpreter Shotgun Shotgun Shotgun Shotgun Battle Rifle Flail Peak State ------------ > --- POWER ------------ Deuterium Engine > --- PROPULSION ------- VSS Leg Improved Carbon-fiber Leg > --- UTILITY ---------- Heat Sink Large Storage Unit > --- WEAPON ----------- Beam Rifle Beam Rifle > --- INVENTORY -------- Light Ion Engine Light Treads Wheel Compact Wheel Heat Sink Compact Battery Machine Analyzer Signal Interpreter Particle Gun Shotgun Shotgun Shotgun Shotgun Battle Rifle Flail [Rating: 18] Favorites ----------- Power Ion Engine Engine Ion Engine Propulsion Light Treads Treads Light Treads Leg VSS Leg Wheel Compact Wheel Utility Large Storage Unit Device Seismic Detector Storage Large Storage Unit Weapon Beam Rifle Energy Gun Beam Rifle Ballistic Gun Light Assault Rifle Impact Weapon Flail Build | -11 -10 -10 -7 ------- Run | Yrd Mat Sub Rec Slots Evolved . | . . . . Power . | . . . . Propulsion . | . . . . Utility . | . . . . Weapon . | . . . . Parts Attached 25 | 8 8 3 6 Power 4 | 2 . . 2 Engine 4 | 2 . . 2 Core . | . . . . Reactor . | . . . . Propulsion 7 | 2 1 2 2 Treads 4 | 2 1 1 . Leg 2 | . . . 2 Wheel 1 | . . 1 . Hover . | . . . . Flight . | . . . . Utility 4 | 2 2 . . Device 2 | 1 1 . . Storage 2 | 1 1 . . Processor . | . . . . Hackware . | . . . . Protection . | . . . . Artifact . | . . . . Weapon 10 | 2 5 1 2 Energy Gun 6 | . 4 . 2 Energy Cannon . | . . . . Ballistic Gun 3 | 2 . 1 . Ballistic Cannon . | . . . . Launcher . | . . . . Special Weapon . | . . . . Impact Weapon 1 | . 1 . . Slashing Weapon . | . . . . Piercing Weapon . | . . . . Special Melee Weapon . | . . . . Unidentified Prototypes . | . . . . Parts Lost 11 | . 1 5 5 Power 2 | . . 2 . Propulsion 4 | . . 2 2 Utility 1 | . . . 1 Weapon 4 | . 1 1 2 Highest Loss Streak 3 | . 1 3 3 To Critical Strikes 1 | . . 1 . Average Backups 10 | 2 8 14 14 Power . | . 1 . . Propulsion 2 | 1 2 1 2 Utility 2 | . 1 3 3 Weapon 5 | . 3 8 7 Tool/Special . | . . . . Unused Backups 12 | . 2 . 10 Power 1 | . 1 . . Propulsion 2 | . . . 2 Utility 4 | . . . 4 Weapon 5 | . 1 . 4 Tool/Special . | . . . . Average Slot Usage (%) 96 | . 99 95 91 Engine 10 | . 13 11 6 Treads 19 | . 27 25 1 Leg 5 | . . . 16 Wheel 3 | . . 2 9 Device 13 | . 14 14 13 Storage 14 | . 14 14 14 Energy Gun 21 | . 16 26 27 Ballistic Gun 5 | . 10 . . Peak Build Rating 18 | 7 11 11 18 Average Rating 10 | 5 8 10 13 On Entrance 7 | . 7 11 10 Naked Turns . | . . . . Heaviest Build 36 | 13 32 32 36 Greatest Support 40 | 40 40 40 30 Greatest Overweight (x) 2 | . . 1 2 Average Overweight (x) . | . . . 1 Largest Inventory Capacity 15 | 8 15 15 15 Average Capacity 14 | 7 14 15 15 Most Carried 15 | 4 15 15 15 Average Carried 11 | 3 8 14 14 Final Capacity 15 | 8 15 15 15 Final Carried 15 | 4 15 13 14 Class Distribution -------------------- 100% | Mutant Dominant Class ---------------- Mutant | -10/Materials Mutant | -10/Subcaves Mutant | -7/Recycling Resources | -11 -10 -10 -7 ----------- Run | Yrd Mat Sub Rec Matter Collected 615 | 252 192 88 83 Remotely . | . . . . Salvage Created 920 | 13 477 167 263 Parts 49 | 3 23 14 9 Haulers Intercepted 1 | . 1 . . Recyclers Shooed 2 | . . . 2 Parts Field Recycled . | . . . . Retrieved Matter . | . . . . Parts Self-Destructed 11 | . . 11 . Prevented . | . . . . Kills | -11 -10 -10 -7 ------- Run | Yrd Mat Sub Rec Combat Hostiles Destroyed 14 | . 8 4 2 Guns 13 | . 8 4 1 Classes Destroyed 10 | 1 6 2 1 Tunneler 1 | 1 . . . Hauler 1 | . 1 . . Recycler 3 | . 1 . 2 Turret 1 | . . 1 . Watcher 2 | . 2 . . Swarmer 5 | . 3 2 . Grunt 4 | . 4 . . Sentry 2 | . . . 2 Subdweller 3 | . 1 2 . Scientist 1 | . . 1 . Best Kill Streak 3 | 1 3 2 1 Combat Bots Only 3 | . 3 2 1 Max Kills in Single Turn 2 | 1 2 1 1 Gunslinging 1 | . 1 . . Exploded . | . . . . Melee . | . . . . Uniques/NPCs Destroyed . | . . . . Combat | -11 -10 -10 -7 -------- Run | Yrd Mat Sub Rec Hostile Shots Fired 285 | . 55 110 120 Missed 115 | . 16 49 50 Hits 170 | . 39 61 70 Projectile 170 | . 39 61 70 Critical Strikes 1 | . . 1 . Damage Taken 1730 | . 591 611 528 Core 255 | . 71 43 141 Absorbed by Shields . | . . . . Regen/Repaired (Parts) 154 | . 154 . . Core Remaining (%) 100 | 100 . . . Volleys Fired 77 | 1 37 22 17 Largest 2 | 2 2 2 2 Hottest 121 | 40 112 112 121 Shots Fired 153 | 2 73 44 34 Gun 153 | 2 73 44 34 Cannon . | . . . . Launcher . | . . . . Special . | . . . . Kinetic 37 | 2 31 4 . Thermal 87 | . 13 40 34 Explosive . | . . . . Electromagnetic 29 | . 29 . . Robot Hit Streak 15 | 1 14 15 10 Robot Miss Streak 3 | . 3 2 1 Penetration Max . | . . . . Secondary Targets 1 | . 1 . . Max Gunslinging Chain 1 | . 1 . . Shots Hit Robots 108 | 1 48 31 28 Core Hits 42 | 1 19 11 11 Critical Kills . | . . . . Critical Parts Destroyed 1 | . 1 . . Critical Strikes 8 | . 2 3 3 Burn 7 | . 1 3 3 Destroy 1 | . 1 . . Melee Attacks 5 | . 3 . 2 Impact 5 | . 3 . 2 Slashing . | . . . . Piercing . | . . . . Sneak Attacks 1 | . 1 . . Combat Hostiles . | . . . . Follow-up Attacks . | . . . . Damage Inflicted 1536 | 10 603 487 436 Guns 1495 | 10 562 487 436 Cannons . | . . . . Explosions . | . . . . Melee 36 | . 36 . . Ramming 5 | . 5 . . Kinetic 242 | 10 181 51 . Thermal 1009 | . 137 436 436 Explosive . | . . . . Electromagnetic 244 | . 244 . . Impact 36 | . 36 . . Slashing . | . . . . Piercing . | . . . . Highest Corruption 1 | . 1 1 1 Average Corruption 1 | . 1 1 1 Corruption Purged . | . . . . Corruption Blocked . | . . . . Effects 12 | . 5 2 5 Message Errors 1 | . . . 1 Matter Fused 5 | . 1 1 3 Energy Discharges 2 | . 1 1 . Parts Rejected 1 | . . . 1 Data Loss (minor) 1 | . 1 . . Data Loss (major) 1 | . 1 . . Weapon Failures 1 | . 1 . . Overload Shots . | . . . . Overflow Damage . | . . . . Projectiles . | . . . . Explosions . | . . . . Melee . | . . . . Knockbacks . | . . . . Impact . | . . . . Kinetic . | . . . . Secondary . | . . . . Self-Inflicted Damage . | . . . . Shots . | . . . . Rammed 1 | . 1 . . Targets Rammed 1 | . 1 . . Kicked . | . . . . Crushed . | . . . . Highest Temperature 310 | . 130 6 310 Average Temperature 47 | . 39 5 65 Received Heat Transfer 720 | . 264 300 156 Siege Activations . | . . . . Martial Activations . | . . . . Shielding Activations . | . . . . Robots Disrupted . | . . . . Combat Hostiles . | . . . . Robots Corrupted . | . . . . Combat Hostiles . | . . . . Parts Fried . | . . . . Impact Corruptions . | . . . . Robots Melted 1 | . . . 1 Combat Hostiles 1 | . . . 1 Parts Melted 5 | . 3 . 2 Heat Transferred 3071 | . 407 1332 1332 Parts Sabotaged . | . . . . Parts Stolen . | . . . . Parts Stripped . | . . . . Power Chain Reactions . | . . . . Alert | -11 -10 -10 -7 ------- Run | Yrd Mat Sub Rec Maximum Alert Level . | . . . . Low Security (%) 100 | 100 100 . 100 Level 1 . | . . . . Level 2 . | . . . . Level 3 . | . . . . Level 4 . | . . . . Level 5 . | . . . . High Security . | . . . . Max Security . | . . . . Peak Influence 80 | 5 80 . 33 Initial 33 | . . . 33 Average 10 | . 15 . 4 Influence Increases 462 | 5 216 150 91 Destroy 0b10 Robot/C 240 | . 140 60 40 Destroy 0b10 Robot/NC 35 | 5 20 . 10 Destroy Leader 36 | . 36 . . Successful Hack 26 | . 17 . 9 Select Force Hacks 30 | . . . 30 Destroy Structure 5 | . 3 . 2 Lose Combat Pursuer 90 | . . 90 . Influence Decreases 460 | 5 216 80 159 Entered New Map 37 | . . . 37 Time Decay 363 | 5 206 50 102 Lost Part 60 | . 10 30 20 Squads Dispatched 2 | . 2 . . Investigation 1 | . 1 . . Extermination . | . . . . Reinforcement 1 | . 1 . . Assault . | . . . . Garrison . | . . . . Intercept . | . . . . Searches Triggered . | . . . . Construction Impeded . | . . . . Haulers Reinforced . | . . . . Active Scanning Responses . | . . . . Cargo Convoy Interrupts . | . . . . Stealth | -11 -10 -10 -7 --------- Run | Yrd Mat Sub Rec Distress Signals 1 | . 1 . . Communications Jammed . | . . . . Distress Signals . | . . . . Times Spotted 34 | . 17 14 3 Peak Tracking Total 6 | . 4 6 2 Tactical Retreats 3 | . . 3 . Traps | -11 -10 -10 -7 ------- Run | Yrd Mat Sub Rec Traps Triggered 2 | . 2 . . Indirectly . | . . . . Trap Hack Attempts . | . . . . Triggered . | . . . . Disarmed . | . . . . Reprogrammed . | . . . . Reused . | . . . . Traps Extracted . | . . . . Installed . | . . . . Triggered . | . . . . Machines | -11 -10 -10 -7 ---------- Run | Yrd Mat Sub Rec Machines Disabled 2 | . . 2 . Max in Single Turn 1 | . . 1 . Machines Repaired . | . . . . Machines Dismantled . | . . . . Machines Sabotaged . | . . . . Overloaded Fab Kills . | . . . . Hacking | -11 -10 -10 -7 --------- Run | Yrd Mat Sub Rec Machines Accessed 9 | . 6 . 3 Terminals 7 | . 5 . 2 Fabricators . | . . . . Repair Stations 1 | . 1 . . Recycling Units 1 | . . . 1 Scanalyzers . | . . . . Garrison Access . | . . . . Total Hacks 25 | . 21 . 4 Successful 18 | . 16 . 2 Failed 7 | . 5 . 2 Catastrophic 1 | . . . 1 Database Lockouts . | . . . . Manual 12 | . 11 . 1 Terminals 17 | . 14 . 3 Fabricators . | . . . . Repair Stations 7 | . 7 . . Recycling Units 1 | . . . 1 Scanalyzers . | . . . . Garrison Access . | . . . . Terminal Hacks 4 | . 3 . 1 Garrison Index 1 | . . . 1 Alert Level 1 | . 1 . . Locate Traps 1 | . 1 . . Zone Layout 1 | . 1 . . Fabricator Hacks . | . . . . Repair Station Hacks 5 | . 5 . . Scan Component 3 | . 3 . . Repair 2 | . 2 . . Recycling Unit Hacks . | . . . . Scanalyzer . | . . . . Garrison Access Hacks . | . . . . Unauthorized Hacks 9 | . 8 . 1 Terminals 8 | . 8 . . Botnet 2 | . 2 . . Operators 1 | . 1 . . Skim 5 | . 5 . . Fabricators . | . . . . Repair Stations . | . . . . Recycling Units 1 | . . . 1 Tunnel 1 | . . . 1 Scanalyzers . | . . . . Garrison Access . | . . . . Data Cores Recovered . | . . . . Used . | . . . . Hacking Detections 7 | . 5 . 2 Full Trace Events . | . . . . Feedback Events . | . . . . Feedback Blocked . | . . . . Robot Schematics Acquired . | . . . . Robots Built . | . . . . Authchips . | . . . . Time . | . . . . Total Robot Build Rating . | . . . . Part Schematics Acquired . | . . . . Parts Built . | . . . . Authchips . | . . . . Time . | . . . . Total Part Build Rating . | . . . . Parts Repaired 2 | . 2 . . Time 52 | . 52 . . Parts Recycled . | . . . . Recycled Matter . | . . . . Retrieved Matter . | . . . . Retrieved Components . | . . . . Parts Scanalyzed . | . . . . Part Schematics Acquired . | . . . . Parts Damaged . | . . . . Bothacking | -11 -10 -10 -7 ------------ Run | Yrd Mat Sub Rec Used RIF Installer . | . . . . Robots Hacked . | . . . . Non-combat . | . . . . Combat . | . . . . Robot Hacks Applied . | . . . . Relay Couplers Released . | . . . . Fabnet Peak Effective % . | . . . . Robots Rewired . | . . . . Allies Hacked . | . . . . Hacks Repelled . | . . . . Allies | -11 -10 -10 -7 -------- Run | Yrd Mat Sub Rec Total Allies . | . . . . Largest Group . | . . . . Highest-Rated Group . | . . . . Highest-Rated Ally . | . . . . Total Orders . | . . . . Ally Attacks . | . . . . Total Damage . | . . . . Kills . | . . . . Allies Corrupted . | . . . . Allies Melted . | . . . . Intel | -11 -10 -10 -7 ------- Run | Yrd Mat Sub Rec Active Infowar (turns) 967 | 13 599 150 205 Seismic 967 | 13 599 150 205 Robot Analysis Total . | . . . . Derelict Logs Recovered . | . . . . Drone Launches . | . . . . Drone Recoveries . | . . . . Exploration | -11 -10 -10 -7 ------------- Run | Yrd Mat Sub Rec Turns Passed 1941 | 96 947 323 575 Spaces Moved 1028 | 53 457 146 372 Core 6 | 6 . . . Treads 631 | 47 457 127 . Legs 69 | . . . 69 Wheels 322 | . . 19 303 Hover . | . . . . Flight . | . . . . Fastest Speed 50 | 50 160 115 105 Average Speed 147 | 147 160 157 127 Slowest Speed 270 | 160 160 240 270 Overloaded Moves . | . . . . Propulsion Burnouts . | . . . . Robots Hopped . | . . . . Potential Cave-ins . | . . . . Cave-ins Triggered . | . . . . Exploration Rate (%) 32 | 3 58 11 57 Regions Visited 3 Branch Regions 2 Pre-discovered Areas 1 | . . . 1 Known Exits Taken . | . . . . Unknown Exits Taken 3 | 1 1 1 . Scrap Searched . | . . . . Spaces Dug 4 | . 2 . 2 Terrain Destroyed 4 | . 2 . 2 Melee 4 | . 2 . 2 Projectile . | . . . . AOE . | . . . . Terrain Rammed . | . . . . Walls Destroyed . | . . . . Machines Disabled . | . . . . Actions | -11 -10 -10 -7 --------- Run | Yrd Mat Sub Rec Total 1285 | 65 597 194 429 Wait 103 | . 66 17 20 Move 1025 | 52 456 145 372 Hop . | . . . . Pick Up 24 | 4 14 3 3 Fast Attach 11 | 7 2 . 2 Attach 9 | . 1 4 4 Detach 1 | . . . 1 Swap 23 | 1 12 2 8 Drop 6 | . 5 1 . Fire 77 | 1 37 22 17 Melee 5 | . 3 . 2 Ram . | . . . . Kick . | . . . . Crush 1 | . 1 . . Escape Stasis . | . . . . Rewire . | . . . . Trap . | . . . . Miscellaneous . | . . . . Route ------- -11/Scrapyard -10/Materials (discovered 3 exits: [*Mat] / [*Min] / [*Sub]) -10/Subcaves -7/Recycling History --------- Turn | Location | Event 16 | -11/Scrapyard | Discovered new exit (range 15) 97 | -11/Scrapyard | Entered Materials 126 | -10/Materials | Discovered new exit (range 9) 304 | -10/Materials | Build established: Mutant 404 | -10/Materials | Discovered new exit (range 16) 620 | -10/Materials | Repaired Ion Engine 647 | -10/Materials | Repaired Lgt. Treads 718 | -10/Materials | Discovered new exit (range 11) 997 | -10/Materials | Derelicts attacked the area 1044 | -10/Materials | Entered Subcaves 1045 | -10/Subcaves | Approached by a straggling Scientist 1047 | -10/Subcaves | Ambushed by Subdwellers from Twisted Machinery 1226 | -10/Subcaves | Shifting Twisted Machinery released Battle Rifle 1271 | -10/Subcaves | Discovered new exit (range 14) 1367 | -10/Subcaves | Entered Recycling 1368 | -7/Recycling | Lost 3 parts (1p1n1w) 1579 | -7/Recycling | Core integrity fell below 50% 1612 | -7/Recycling | Lost 3 parts (1n1u1w) 1919 | -7/Recycling | Core integrity fell below 20% 1942 | -7/Recycling | Destroyed by Y-54 Guardian with Gatling Laser Last Messages --------------- 01782_ System corrupted: Matter fused (-9). 01791_ Connecting with Terminal... >>Index(Garrisons) No garrison accesses found. 01866_ System corrupted: Matter fused (-10). 01910_ Y-54 Guardian springs to life. 01914_ Beam Rifle destroyed. 01918_ Imp. Heat Sink melted. 01918_ Y-54 Guardian destroyed. 01918_ R-06 Scavenger collects Gatling Laser. 01922_ R-06 Scavenger collects Lgt. Treads. 01935_ Imp. Carbon-fiber Leg destroyed. 01936_ System corrupted: Heat Sink rejected. 01936_ Y-54 Guardian heat damages Imp. Heat Sink. 01936_ U-05 Engineer builds a Wall. 01937_ R-06 Scavenger collects Heat Sink. 01939_ Y-54 Guardian suffers critical hit (Burn). 01939_ R-06 Scavenger suffers critical hit (Burn). 01941_ U-05 Engineer builds a Wall. 01942_ Y-54 Guardian heat short circuits Lgt. Treads. Map ----- +----------------------------------------------------+ | ???????????????????????????????????????? | | ???????????????????????????????????????? | | ???????????????????????????????????????? | | ???????????????????????????????????????? | | ???????????????????????????????????????? | | ???????????????????????????????????????? | | ???????????????????????????????????????? | | ???????????????????????????????????????? | | ???????????????????????????????????????? | | ???????????????????????????????????????? | | ???????????????????????????????????????? | | ???????????????????????????????????????? | | ???????????????????????????????????????? | | ???????????????????????????????????????? | | ?????????? ???????????????????????????? | | ??????????? ?#######???????????????????? | | ???????????? # ###?????????????????? | | ???????????? # ??????????????????? | | ?????????????+ ???????????????????? | | ?????????????# ???????????????????? | | ?????????????? ????????????????????? | | ??????????????# ##???????????????????? | | ??????????????# rY #???????????????????? | | ??????????????# %##########???????????? | | ??????????????# # #???????????? | | ??????????????#@ # """ #???????????? | | ?????????????## + """ #???????????? | | ?????????????## # """ #???????????? | | ?????????????##u # #???????????? | | ?????????????## # """ ""#???????????? | | ?????????????## # """ T"#???????????? | | ????????###?### # """ ""#???????????? | | ????????? # # #???????????? | | ????????? # ###" "####???????????? | | ??????? ? #r #?#"Y"#??????????????? | | ??????"" """" # #??"""#??????????????? | | ?????""" """" # #??#?????????????????? | | ????"""" """" # #????????????????????? | | ??# """" """" # #????????????????????? | | ??# + #????????????????????? | | ????"""" # #????????????????????? | | ????"""" " ## ##????????????????##### | | ????"""" T ## #?????????????????# | | ??? """" " ## #?????????????????# | | ??# ## #?????????????????# | | ???##########+## ####??????????????# | | ????????????# +??????????????##### | | ??########### #######?????????????????# | | ??# # #???????????????????????# | | ??# # #???????????????????????# | +----------------------------------------------------+ Best States ------------- Heat Dissipation 35 Energy Generation 14 Energy Capacity 275 Matter Stores 300 Matter Capacity 300 Sight Range 16 Terrain Scan Density 10 Evasion (%) 45 Recoil Reduction 2 Item Schematics ----------------- None Robot Schematics ------------------ None Fabricated ------------ Nothing Repaired ---------- Ion Engine | 1% | -10/Materials Lgt. Treads | 32% | -10/Materials Alien Tech Used ----------------- None Achievements -------------- None Challenges ------------ None Game ------ Seed TargetingDeliveryFalx Manual? 0 Play Time 00:20:13 Cumulative 115.1 hours Start 2025.05.29 @ 16:24:25 End 2025.05.29 @ 16:40:09 Sessions 1 Manual Loads 0 Difficulty Rogue Special Mode None Game No. 118 Rogue 118 Adventurer 0 Explorer 0 Win Type - Total 1 Types 1/0/0/0/0/0/0/0/0/0 Lore% 64 Gallery% 57 Achievement% 48 Wizard Run 0 Options --------- Layout 0 ASCII 0 Keyboard 1 Movement Numpad Keybinds 0 Fullscreen 1 Font 24/Terminus Map View 76x50 Zoom Use 0% Tactical HUD 1 Map Filters NONE Filters NONE Steam 1 RUN: a09bef46-6fef-4cbb-b62a-8e8fcc61dcee